bitfinex-derivatives/quotes_BTCF0:USTF0_20210104
["timestamp","ask_amount","ask_price","bid_price","bid_amount"]
[1609799208149,0.48097607,31208.0,31206.0,4.8163]
[1609799210753,0.48097607,31208.0,31203.0,0.13632608]
[1609799211355,0.48097607,31208.0,31207.0,0.13632608]
[1609799212456,0.13632608,31210.0,31207.0,0.13632608]
[1609799213060,0.13632608,31210.0,31207.0,0.77892608]
[1609799213958,0.38882,31214.0,31207.0,0.77892608]
[1609799214157,0.38882,31214.0,31207.0,0.13632608]
[1609799214358,0.10882,31214.0,31210.0,4.0834]
[1609799214557,0.2908,31220.0,31210.0,4.0834]
[1609799215058,0.13095,31224.0,31207.0,0.13632608]
[1609799215259,0.28845111,31229.0,31221.0,3.27188203]
[1609799215459,0.28845111,31229.0,31226.0,0.13632608]
[1609799215663,0.01385111,31229.0,31226.0,0.13632608]
[1609799217461,0.17076908,31231.0,31226.0,0.13632608]
[1609799218663,0.15691,31231.0,31226.0,0.13632608]
[1609799218863,0.00404661,31246.0,31226.0,0.13632608]
[1609799219065,0.00404661,31246.0,31234.0,4.0657]
[1609799219364,0.00404661,31246.0,31241.0,0.13632608]
[1609799219565,0.00404661,31246.0,31241.0,0.78692608]
[1609799219765,0.02928975,31247.0,31241.0,0.78692608]
[1609799219766,0.00405159,31247.0,31241.0,0.78692608]
[1609799220666,0.00405159,31247.0,31241.0,0.30632856]
[1609799221168,0.0138837,31249.0,31241.0,0.30632856]
[1609799221368,0.0138837,31249.0,31241.0,0.44265464]
[1609799223170,0.00404933,31250.0,31241.0,0.44265464]
[1609799224470,0.58271885,31252.0,31241.0,0.44265464]
[1609799224670,0.0040498,31252.0,31241.0,0.44265464]
[1609799224871,0.61678732,31242.0,31241.0,0.44265464]
[1609799227476,0.61678732,31242.0,31241.0,0.13632608]
[1609799227974,5.66518732,31242.0,31241.0,0.13632608]
[1609799230084,0.61678732,31242.0,31241.0,0.13632608]
[1609799238690,0.61678732,31242.0,31241.0,0.75992608]
[1609799242392,0.61678732,31242.0,31241.0,0.13632608]
[1609799245393,0.61678732,31242.0,31241.0,0.90182608]
[1609799248798,0.61678732,31242.0,31241.0,0.13632608]
[1609799248998,5.79828732,31242.0,31234.0,0.13449]
[1609799249601,5.79828732,31242.0,31237.0,0.13632608]
[1609799250201,0.61678732,31242.0,31237.0,0.13632608]
[1609799250400,0.61678732,31242.0,31237.0,5.43432608]
[1609799250599,0.61678732,31242.0,31237.0,5.57496608]
[1609799251801,0.61678732,31242.0,31241.0,0.13632608]
[1609799252001,0.61678732,31242.0,31241.0,0.71762608]
[1609799253703,0.61678732,31242.0,31241.0,0.13632608]
[1609799254204,4.72138732,31242.0,31241.0,0.13632608]
[1609799254906,0.61678732,31242.0,31241.0,0.13632608]
[1609799256006,0.61678732,31242.0,31241.0,0.68942608]
[1609799258810,0.61678732,31242.0,31241.0,0.13632608]
[1609799261612,0.61678732,31242.0,31241.0,5.18862608]
[1609799263817,0.61678732,31242.0,31241.0,0.13632608]
[1609799267417,0.61678732,31242.0,31241.0,4.88722608]
[1609799267817,0.48046124,31242.0,31241.0,4.88722608]
[1609799268618,0.48046124,31242.0,31241.0,4.7509]
[1609799270222,0.48046124,31242.0,31241.0,4.88722608]
[1609799280233,0.13632608,31251.0,31241.0,4.88722608]
[1609799282335,0.13632608,31251.0,31250.0,0.13632608]
[1609799282734,0.13632608,31251.0,31250.0,0.70482608]
[1609799283536,0.13632608,31251.0,31250.0,0.22442578]
[1609799284337,0.13632608,31251.0,31250.0,0.36075186]
[1609799286542,0.13632608,31251.0,31250.0,0.13632608]
[1609799287944,0.34407361,31246.0,31243.0,3.834]
[1609799288247,0.34407361,31246.0,31245.0,0.13632608]
[1609799288850,0.34407361,31246.0,31245.0,3.77582608]
[1609799289543,0.01907361,31246.0,31245.0,3.77582608]
[1609799289943,0.13333,31261.0,31245.0,3.77582608]
[1609799290244,0.00407502,31262.0,31258.0,0.13632608]
[1609799290458,0.01396035,31265.0,31258.0,0.13632608]
[1609799290655,0.01396035,31265.0,31260.0,4.4634]
[1609799291951,0.00407177,31268.0,31260.0,4.4634]
[1609799292349,0.13632608,31261.0,31260.0,4.4634]
[1609799294353,0.13632608,31261.0,31258.0,0.13632608]
[1609799297959,0.13632608,31261.0,31260.0,5.2319]
[1609799298758,0.00406701,31273.0,31260.0,5.2319]
[1609799299161,0.01393154,31275.0,31260.0,5.2319]
[1609799300361,0.01393154,31275.0,31264.0,0.13632608]
[1609799300761,0.01393154,31275.0,31264.0,0.27419608]
[1609799301463,0.01393154,31275.0,31264.0,0.13787]
[1609799301762,0.0040609,31274.0,31264.0,0.13787]
[1609799301961,0.47998635,31273.0,31264.0,0.13787]
[1609799302365,0.13632608,31265.0,31264.0,0.13787]
[1609799305072,4.86962608,31265.0,31264.0,0.13787]
[1609799305872,0.13632608,31265.0,31258.0,0.13632608]
[1609799306371,0.13632608,31259.0,31258.0,0.13632608]
[1609799310377,5.245,31263.0,31258.0,0.13632608]
[1609799310676,0.13632608,31267.0,31258.0,0.13632608]
[1609799312078,4.5733,31266.0,31258.0,0.13632608]
[1609799312477,4.5733,31266.0,31263.0,0.13632608]
[1609799312677,4.5733,31266.0,31263.0,0.26181608]
[1609799313279,0.48004608,31269.0,31263.0,0.26181608]
[1609799314583,0.13632608,31264.0,31263.0,0.26181608]
[1609799319187,0.13632608,31264.0,31263.0,5.20621608]
[1609799319889,0.13632608,31264.0,31263.0,0.26181608]
[1609799322492,0.13632608,31264.0,31263.0,0.12549]
[1609799322893,0.13632608,31264.0,31263.0,0.26181608]
[1609799324493,0.13632608,31264.0,31263.0,0.89501608]
[1609799326696,0.13632608,31264.0,31263.0,0.26181608]
[1609799334305,0.13632608,31264.0,31263.0,4.97631608]
[1609799334706,0.48002284,31270.0,31263.0,4.97631608]
[1609799335206,0.48002284,31270.0,31269.0,0.13632608]
[1609799335407,0.48002284,31270.0,31269.0,0.89932608]
[1609799338812,0.13632608,31274.0,31269.0,0.89932608]
[1609799339214,0.13632608,31274.0,31273.0,0.13632608]
[1609799340615,0.13632608,31274.0,31273.0,0.26506608]
[1609799341423,0.61629273,31274.0,31273.0,0.26506608]
[1609799341618,0.47996665,31274.0,31273.0,0.26506608]
[1609799342117,0.00407268,31284.0,31273.0,0.26506608]
[1609799343221,0.00407268,31284.0,31281.0,0.13632608]
[1609799343820,0.00407268,31284.0,31281.0,0.24589608]
[1609799344120,0.00407268,31284.0,31283.0,5.3541]
[1609799344524,0.00407613,31288.0,31283.0,5.3541]
[1609799345422,0.13632608,31284.0,31283.0,5.3541]
[1609799345623,0.13632608,31284.0,31281.0,0.24589608]
[1609799355639,0.13632608,31284.0,31281.0,0.10957]
[1609799355840,0.13632608,31284.0,31280.0,4.1656]
[1609799356943,0.13632608,31284.0,31273.0,0.12874]
[1609799357341,0.13632608,31284.0,31268.0,4.9937]
[1609799357541,0.13632608,31280.0,31277.0,0.13632608]
[1609799358739,0.47980023,31285.0,31277.0,0.13632608]
[1609799359140,0.47980023,31285.0,31277.0,0.26904608]
[1609799359541,0.47980023,31285.0,31282.0,0.13632608]
[1609799361543,0.13632608,31283.0,31282.0,0.13632608]
[1609799364147,0.13632608,31283.0,31282.0,4.68672608]
[1609799367247,0.47980023,31285.0,31282.0,4.68672608]
[1609799368849,0.13632608,31289.0,31282.0,4.68672608]
[1609799369552,0.13632608,31289.0,31288.0,0.13632608]
[1609799369750,0.13632608,31289.0,31288.0,0.85092608]
[1609799370750,0.13632608,31289.0,31288.0,0.13632608]
[1609799370950,0.13632608,31289.0,31277.0,3.79172]
[1609799371556,0.00406657,31292.0,31284.0,0.13632608]
[1609799371952,0.47977829,31286.0,31284.0,5.04902608]
[1609799373656,0.13632608,31285.0,31284.0,5.04902608]
[1609799380767,0.13632608,31285.0,31284.0,0.13632608]
[1609799384270,0.13632608,31285.0,31284.0,3.72262608]
[1609799385373,0.13632608,31285.0,31284.0,3.86115608]
[1609799391982,0.13632608,31285.0,31284.0,0.27485608]
[1609799400503,0.00407577,31296.0,31284.0,4.28455608]
[1609799401204,0.00407577,31296.0,31284.0,0.27485608]
[1609799401602,0.01397484,31297.0,31284.0,0.27485608]
[1609799402002,0.01397484,31297.0,31289.0,0.13632608]
[1609799402302,0.34344175,31287.0,31284.0,0.13853]
[1609799402703,0.34344175,31287.0,31286.0,3.9703]
[1609799404409,0.47976783,31287.0,31286.0,4.10662608]
[1609799409118,0.13632608,31287.0,31286.0,4.10662608]
[1609799412630,0.13632608,31287.0,31286.0,3.9703]
[1609799415727,0.13632608,31287.0,31284.0,0.13183]
[1609799416229,0.13632608,31287.0,31281.0,0.13632608]
[1609799416732,0.13632608,31282.0,31281.0,0.13632608]
[1609799422336,0.13632608,31282.0,31281.0,4.96522608]
[1609799430442,0.13632608,31282.0,31281.0,0.13632608]
[1609799434549,0.13632608,31282.0,31280.0,5.2696]
[1609799435451,0.13632608,31282.0,31277.0,0.13272]
[1609799435951,0.13632608,31282.0,31272.0,7.13450142]
[1609799437055,0.13632608,31273.0,31272.0,7.13450142]
[1609799437254,0.13632608,31273.0,31272.0,2.07780142]
[1609799437453,0.13632608,31273.0,31272.0,6.08360142]
[1609799437852,0.13632608,31273.0,31272.0,4.0058]
[1609799439756,0.47984645,31282.0,31272.0,4.0058]
[1609799440353,0.47984645,31282.0,31272.0,4.13205]
[1609799441055,0.13632608,31273.0,31272.0,4.13205]
[1609799447164,0.13632608,31273.0,31272.0,0.12625]
[1609799447562,0.13632608,31273.0,31270.0,2.21327716]
[1609799449967,0.13632608,31273.0,31270.0,0.13632608]
[1609799452969,0.13632608,31273.0,31269.0,2.08711795]
[1609799455671,0.13632608,31273.0,31268.0,2.09728152]
[1609799457375,0.47984645,31282.0,31268.0,2.09728152]
[1609799457376,0.13632608,31269.0,31268.0,2.09728152]
[1609799464290,0.13632608,31269.0,31267.0,2.10360729]
[1609799469895,0.13632608,31269.0,31266.0,2.10356892]
[1609799471197,0.13632608,31269.0,31265.0,2.10462921]
[1609799473099,0.5905,31268.0,31265.0,2.10462921]
[1609799473802,0.13632608,31269.0,31265.0,2.10462921]
[1609799473999,5.0774,31268.0,31265.0,2.10462921]
[1609799475299,5.0774,31268.0,31263.0,0.12549]
[1609799475701,5.0774,31268.0,31262.0,2.11068463]
[1609799476301,5.0774,31268.0,31260.0,2.1123702]
[1609799477302,0.13632608,31261.0,31257.0,2.11404003]
[1609799478405,0.13632608,31261.0,31256.0,2.11482316]
[1609799479108,0.13632608,31261.0,31254.0,2.25168152]
[1609799479304,4.0538,31267.0,31254.0,2.25168152]
[1609799479305,0.13632608,31255.0,31254.0,2.25168152]
[1609799483012,4.93352608,31255.0,31254.0,2.25168152]
[1609799483212,4.93352608,31255.0,31254.0,0.14058]
[1609799483412,4.93352608,31255.0,31252.0,2.11095828]
[1609799484116,4.93352608,31255.0,31250.0,2.11203349]
[1609799484814,0.13632608,31255.0,31250.0,2.11203349]
[1609799485414,0.13632608,31251.0,31250.0,2.11203349]
[1609799487117,0.13632608,31251.0,31249.0,2.11105767]
[1609799488418,0.13632608,31251.0,31242.0,2.63121242]
[1609799488419,4.5681,31250.0,31248.0,2.11223336]
[1609799490119,4.5681,31250.0,31247.0,2.11055349]
[1609799490318,0.13632608,31251.0,31247.0,2.21775349]
[1609799490319,4.6064,31248.0,31247.0,2.21775349]
[1609799491321,4.6064,31248.0,31247.0,0.1072]
[1609799491923,4.6064,31248.0,31245.0,2.11269375]
[1609799492524,4.6064,31248.0,31236.0,2.1188827]
[1609799492923,3.84,31237.0,31236.0,2.1188827]
[1609799493523,3.97632608,31237.0,31236.0,2.1188827]
[1609799493724,3.97632608,31237.0,31232.0,2.1234858]
[1609799495325,3.97632608,31237.0,31229.0,0.09843]
[1609799495525,0.13632608,31230.0,31229.0,0.09843]
[1609799498228,0.13632608,31230.0,31214.0,2.11895939]
[1609799498429,4.6881,31220.0,31214.0,2.11895939]
[1609799498630,4.6881,31220.0,31213.0,2.11887404]
[1609799498830,0.13632608,31230.0,31213.0,2.11887404]
[1609799499031,3.692,31214.0,31213.0,2.11887404]
[1609799499230,3.692,31214.0,31213.0,2.22055404]
[1609799499429,3.82832608,31214.0,31213.0,2.22055404]
[1609799501133,0.11338,31239.0,31213.0,0.10168]
[1609799501533,4.243,31225.0,31215.0,0.13632608]
[1609799503437,0.13632608,31216.0,31215.0,0.13632608]
[1609799503836,4.56332608,31216.0,31215.0,0.13632608]
[1609799505839,0.13632608,31216.0,31215.0,0.13632608]
[1609799506441,0.74442608,31216.0,31215.0,0.13632608]
[1609799508344,0.13632608,31216.0,31215.0,0.13632608]
[1609799510647,0.23262608,31216.0,31215.0,0.13632608]
[1609799512850,0.13632608,31216.0,31215.0,0.13632608]
[1609799513751,5.31222608,31216.0,31215.0,0.13632608]
[1609799513950,5.40802608,31216.0,31215.0,0.13632608]
[1609799514652,5.31222608,31216.0,31215.0,0.13632608]
[1609799515652,5.40792608,31216.0,31215.0,0.13632608]
[1609799516452,5.31222608,31216.0,31215.0,0.13632608]
[1609799518955,5.40932608,31216.0,31215.0,0.13632608]
[1609799519454,5.31222608,31216.0,31215.0,0.13632608]
[1609799520557,5.40962608,31216.0,31215.0,0.13632608]
[1609799521458,5.31222608,31216.0,31215.0,0.13632608]
[1609799529667,0.13632608,31216.0,31215.0,0.13632608]
[1609799529867,4.4525,31229.0,31215.0,0.13632608]
[1609799530470,0.48058622,31234.0,31215.0,0.13632608]
[1609799530669,0.48058622,31234.0,31220.0,4.9358]
[1609799530869,0.48058622,31234.0,31220.0,0.12832]
[1609799531071,0.48058622,31234.0,31228.0,5.0257]
[1609799531270,0.48058622,31234.0,31227.0,0.15207]
[1609799531470,5.2625,31239.0,31227.0,0.15207]
[1609799531671,5.2625,31239.0,31237.0,0.13632608]
[1609799531872,0.00399461,31250.0,31237.0,0.13632608]
[1609799532272,0.10053,31254.0,31237.0,0.13632608]
[1609799532472,0.00399688,31257.0,31241.0,4.3945]
[1609799532672,0.00399688,31257.0,31241.0,4.50205]
[1609799533573,0.00399688,31257.0,31253.0,0.13632608]
[1609799533773,0.69069688,31257.0,31253.0,0.13632608]
[1609799533974,0.69069688,31257.0,31253.0,0.28874608]
[1609799534679,0.6867,31257.0,31253.0,0.28874608]
[1609799535578,0.13632608,31254.0,31253.0,0.28874608]
[1609799542488,0.13632608,31254.0,31253.0,4.97944608]
[1609799543689,0.13632608,31254.0,31253.0,0.28874608]
[1609799560115,3.7595,31269.0,31253.0,0.28874608]
[1609799561917,0.2814,31280.0,31262.0,0.13632608]
[1609799563820,0.2814,31280.0,31261.0,0.13409]
[1609799563821,0.2814,31280.0,31267.0,0.13632608]
[1609799564019,0.2814,31280.0,31267.0,0.66952608]
[1609799565021,0.47992896,31277.0,31267.0,0.66952608]
[1609799565822,0.13632608,31268.0,31267.0,0.66952608]
[1609799573830,0.13632608,31268.0,31267.0,0.13632608]
[1609799586848,0.13632608,31268.0,31267.0,4.14402608]
[1609799587149,0.13632608,31268.0,31267.0,0.13632608]
[1609799592854,0.13632608,31268.0,31267.0,5.21242608]
[1609799593257,0.13632608,31268.0,31267.0,0.13632608]
[1609799593456,4.39462608,31268.0,31267.0,0.13632608]
[1609799595258,0.13632608,31268.0,31267.0,0.13632608]
[1609799597562,0.13632608,31268.0,31261.0,0.13409]
[1609799597963,0.13632608,31268.0,31258.0,6.5338536]
[1609799598165,0.13632608,31262.0,31258.0,6.5338536]
[1609799599065,0.13632608,31262.0,31258.0,2.1362536]
[1609799599267,0.13632608,31262.0,31257.0,0.13632608]
[1609799599666,4.4635,31258.0,31257.0,0.13632608]
[1609799602071,4.59982608,31258.0,31257.0,0.13632608]
[1609799602271,0.4799417,31276.0,31257.0,0.13632608]
[1609799602475,4.0,31267.0,31257.0,0.13632608]
[1609799604074,0.13632608,31261.0,31257.0,0.13632608]
[1609799604273,3.6779,31258.0,31257.0,0.13632608]
[1609799605775,0.13632608,31261.0,31257.0,0.13632608]
[1609799609378,3.9377,31258.0,31257.0,0.13632608]
[1609799610979,0.13632608,31261.0,31257.0,0.13632608]
[1609799626902,0.48000191,31272.0,31257.0,0.13632608]
[1609799628408,0.48000191,31272.0,31261.0,0.13632608]
[1609799630407,0.13632608,31262.0,31261.0,0.13632608]
[1609799632413,0.13632608,31262.0,31260.0,0.16016]
[1609799633716,0.13632608,31262.0,31256.0,2.13999535]
[1609799633916,0.13632608,31262.0,31254.0,2.14019533]
[1609799634416,0.13632608,31255.0,31254.0,2.14019533]
[1609799635019,0.13632608,31255.0,31253.0,5.8759914]
[1609799637020,0.13632608,31255.0,31253.0,3.73572]
[1609799643428,4.1045,31263.0,31253.0,3.73572]
[1609799644530,0.13632608,31254.0,31253.0,3.73572]
[1609799647635,0.13632608,31254.0,31253.0,5.87580928]
[1609799661859,0.13632608,31254.0,31253.0,2.29250928]
[1609799666167,0.13632608,31254.0,31253.0,7.28250928]
[1609799669671,0.13632608,31254.0,31253.0,2.29250928]
[1609799669973,4.59522608,31254.0,31253.0,2.29250928]
[1609799672277,0.13632608,31254.0,31253.0,2.29250928]
[1609799672677,0.13632608,31254.0,31253.0,6.77050928]
[1609799674686,0.13632608,31254.0,31253.0,2.29250928]
[1609799674984,4.67082608,31254.0,31253.0,2.29250928]
[1609799676687,0.13632608,31254.0,31253.0,2.29250928]
[1609799679092,0.13632608,31254.0,31253.0,7.21850928]
[1609799679795,0.13632608,31254.0,31253.0,2.29250928]
[1609799679997,5.30892608,31254.0,31253.0,2.29250928]
[1609799681498,0.13632608,31254.0,31253.0,2.29250928]
[1609799681698,4.90122608,31254.0,31253.0,2.29250928]
[1609799682601,0.13632608,31254.0,31253.0,2.29250928]
[1609799684599,0.13632608,31254.0,31253.0,3.05900928]
[1609799684799,0.13632608,31254.0,31253.0,2.29250928]
[1609799685001,4.46082608,31254.0,31253.0,2.29250928]
[1609799685303,4.46082608,31254.0,31253.0,0.15242]
[1609799685801,4.46082608,31254.0,31252.0,2.1422994]
[1609799687504,4.46082608,31254.0,31253.0,2.14233427]
[1609799688206,0.13632608,31254.0,31253.0,2.14233427]
[1609799690111,0.13632608,31254.0,31252.0,2.14254087]
[1609799690912,0.13632608,31254.0,31253.0,2.14278549]
[1609799692713,3.95752608,31254.0,31253.0,2.14278549]
[1609799693114,0.13632608,31254.0,31253.0,2.14278549]
[1609799699927,0.13632608,31254.0,31252.0,2.14357665]
[1609799702028,5.41332608,31254.0,31252.0,2.14357665]
[1609799703132,5.41332608,31254.0,31253.0,2.14356781]
[1609799705336,5.41332608,31254.0,31252.0,2.14350931]
[1609799706839,0.13632608,31254.0,31252.0,2.14350931]
[1609799707838,4.58872608,31254.0,31252.0,2.14350931]
[1609799708340,0.13632608,31254.0,31252.0,2.14350931]
[1609799712142,0.13632608,31254.0,31253.0,2.14354348]
[1609799717646,5.06712608,31254.0,31253.0,2.14354348]
[1609799718144,0.13632608,31254.0,31253.0,2.14354348]
[1609799733869,5.38852608,31254.0,31253.0,2.14354348]
[1609799734669,0.13632608,31254.0,31253.0,2.14354348]
[1609799739674,0.13632608,31254.0,31252.0,2.14377587]
[1609799740774,0.13632608,31254.0,31253.0,2.14355449]
[1609799742280,0.13632608,31254.0,31252.0,2.14288125]
[1609799744583,5.18722608,31254.0,31252.0,2.14288125]
[1609799745783,5.18722608,31254.0,31253.0,2.14291558]
[1609799749890,5.18722608,31254.0,31252.0,2.14064234]
[1609799751091,5.18722608,31254.0,31251.0,2.2769303]
[1609799752496,5.18722608,31254.0,31251.0,0.13568]
[1609799752694,5.18722608,31254.0,31249.0,2.14222113]
[1609799753595,0.13632608,31250.0,31249.0,2.14222113]
[1609799755295,4.21412608,31250.0,31249.0,2.14222113]
[1609799757298,4.21412608,31250.0,31248.0,2.14282651]
[1609799758199,0.13632608,31250.0,31248.0,2.14282651]
[1609799758400,0.13632608,31250.0,31247.0,2.14144685]
[1609799759301,4.0645,31249.0,31247.0,2.14144685]
[1609799759901,4.0645,31249.0,31246.0,2.14163484]
[1609799760505,0.13632608,31250.0,31246.0,2.14163484]
[1609799763011,4.4482,31247.0,31246.0,2.14163484]
[1609799763508,0.13632608,31250.0,31246.0,2.14163484]
[1609799764607,3.8231,31247.0,31246.0,2.14163484]
[1609799765510,0.13632608,31250.0,31246.0,2.14163484]
[1609799766012,0.13632608,31250.0,31245.0,2.14116291]
[1609799767514,0.13632608,31250.0,31244.0,2.1400214]
[1609799767714,0.13632608,31245.0,31244.0,2.1400214]
[1609799770920,0.13589617,31245.0,31243.0,2.14017829]
[1609799771321,3.82049617,31245.0,31243.0,2.14017829]
[1609799772421,3.82049617,31245.0,31242.0,2.14019019]
[1609799773020,0.13589617,31245.0,31242.0,2.14019019]
[1609799775524,5.41339617,31245.0,31242.0,2.14019019]
[1609799776528,5.41339617,31245.0,31241.0,2.2461844]
[1609799778027,5.41339617,31245.0,31241.0,0.10755]
[1609799778227,5.41339617,31245.0,31240.0,2.13867516]
[1609799778429,0.13589617,31245.0,31240.0,2.13867516]
[1609799778827,3.8005,31241.0,31240.0,2.13867516]
[1609799779028,3.8005,31241.0,31239.0,2.13759692]
[1609799779729,0.13632608,31240.0,31239.0,2.13759692]
[1609799780630,0.13632608,31240.0,31237.0,2.46827323]
[1609799781429,4.019,31247.0,31237.0,2.33194715]
[1609799781630,0.4803074,31252.0,31237.0,2.33194715]
[1609799781830,4.3321074,31252.0,31238.0,0.13632608]
[1609799782432,4.3321074,31252.0,31239.0,2.13710035]
[1609799783837,0.13904,31258.0,31239.0,2.13710035]
[1609799784034,4.52482608,31240.0,31239.0,2.13710035]
[1609799785037,0.13632608,31240.0,31239.0,2.13710035]
[1609799785637,0.13632608,31240.0,31238.0,0.13632608]
[1609799785838,0.13632608,31240.0,31236.0,2.3313822]
[1609799786037,0.13632608,31240.0,31239.0,2.13675827]
[1609799786441,4.02612608,31240.0,31239.0,2.13675827]
[1609799787840,0.13632608,31240.0,31239.0,2.13675827]
[1609799789146,0.13632608,31240.0,31238.0,2.13703932]
[1609799790244,0.13632608,31240.0,31235.0,0.26855608]
[1609799790443,0.13632608,31240.0,31235.0,0.13632608]
[1609799795547,0.48050736,31239.0,31235.0,0.25320608]
[1609799795847,0.13632608,31240.0,31235.0,0.25320608]
[1609799796048,0.13632608,31236.0,31235.0,0.25320608]
[1609799797949,0.13632608,31246.0,31235.0,0.25320608]
[1609799798148,0.13632608,31246.0,31237.0,4.8312]
[1609799799047,0.48035354,31249.0,31237.0,4.8312]
[1609799799248,0.48035354,31249.0,31235.0,0.25320608]
[1609799799448,0.48035354,31249.0,31244.0,5.09848]
[1609799799648,0.16824613,31258.0,31244.0,5.09848]
[1609799799949,0.16824613,31258.0,31256.0,0.13632608]
[1609799800151,0.02920613,31258.0,31256.0,0.13632608]
[1609799805161,0.02920613,31258.0,31256.0,4.73702608]
[1609799807664,0.01941207,31258.0,31256.0,6.87177905]
[1609799807865,0.13632608,31275.0,31256.0,6.87177905]
[1609799808064,0.13632608,31275.0,31271.0,0.13632608]
[1609799808265,0.13632608,31275.0,31271.0,0.74802608]
[1609799817875,0.13632608,31275.0,31271.0,0.13632608]
[1609799818177,0.13632608,31275.0,31273.0,4.6649]
[1609799818778,0.13632608,31275.0,31273.0,4.18487572]
[1609799819679,0.13632608,31275.0,31271.0,0.13632608]
[1609799821382,0.13632608,31275.0,31261.0,4.465]
[1609799822184,0.13632608,31269.0,31267.0,0.13632608]
[1609799823784,0.13632608,31269.0,31268.0,0.573]
[1609799824083,0.13632608,31269.0,31268.0,0.6712]
[1609799824689,0.13632608,31269.0,31268.0,0.0982]
[1609799829189,0.13632608,31269.0,31267.0,0.13632608]
[1609799833993,0.13632608,31269.0,31268.0,4.5926]
[1609799834794,0.13632608,31269.0,31267.0,0.13632608]
[1609799881557,0.13632608,31269.0,31267.0,0.84472608]
[1609799882459,0.13632608,31269.0,31267.0,2.96454098]
[1609799882862,3.9386,31277.0,31267.0,2.8282149]
[1609799883259,3.9386,31277.0,31271.0,0.13632608]
[1609799883459,0.2828,31281.0,31271.0,0.13632608]
[1609799885263,0.13632608,31272.0,31271.0,0.13632608]
[1609799892273,0.2828,31281.0,31271.0,0.13632608]
[1609799892674,0.2828,31281.0,31274.0,3.6283]
[1609799893076,0.2828,31281.0,31274.0,3.75624]
[1609799893477,0.2828,31281.0,31280.0,0.13632608]
[1609799895381,0.41912608,31281.0,31280.0,0.13632608]
[1609799899587,0.41912608,31281.0,31280.0,4.15382608]
[1609799900488,0.41912608,31281.0,31280.0,0.13632608]
[1609799912905,0.2828,31281.0,31280.0,0.13632608]
[1609799934936,0.13632608,31289.0,31280.0,0.13632608]
[1609799935735,0.13632608,31289.0,31288.0,0.13632608]
[1609799948749,0.47969373,31292.0,31288.0,0.13632608]
[1609799949752,0.00408199,31296.0,31288.0,0.13632608]
[1609799949950,0.13632608,31291.0,31288.0,0.13632608]
[1609799950451,0.00408199,31296.0,31288.0,0.13632608]
[1609799950651,0.16145288,31297.0,31288.0,0.13632608]
[1609799950652,0.13191,31297.0,31288.0,0.13632608]
[1609799950852,0.01398979,31298.0,31288.0,0.13632608]
[1609799951051,0.01398979,31298.0,31296.0,5.3142]
[1609799951552,0.01398979,31298.0,31288.0,0.13632608]
[1609799951953,0.01398979,31298.0,31297.0,0.13632608]
[1609799952555,0.28267948,31299.0,31297.0,0.13632608]
[1609799954059,0.2786,31299.0,31297.0,0.13632608]
[1609799955461,0.2786,31299.0,31298.0,4.489]
[1609799956562,0.2786,31299.0,31297.0,0.13632608]
[1609799964679,0.49342476,31307.0,31304.0,4.5852]
[1609799964880,0.48353539,31307.0,31304.0,4.5852]
[1609799965481,0.00407027,31307.0,31304.0,4.5852]
[1609799965681,0.00407027,31307.0,31297.0,0.13632608]
[1609799965883,0.00407027,31307.0,31306.0,4.59862608]
[1609799966480,0.00407027,31307.0,31306.0,0.13632608]
[1609799966681,0.00406851,31310.0,31306.0,0.13632608]
[1609799968387,0.85264244,31316.0,31306.0,0.13632608]
[1609799968388,0.01394639,31325.0,31306.0,0.13632608]
[1609799969083,0.01394639,31325.0,31310.0,4.9853]
[1609799969783,0.83383904,31328.0,31310.0,4.9853]
[1609799969784,0.13632608,31328.0,31310.0,4.9853]
[1609799969983,0.13632608,31328.0,31327.0,0.13632608]
[1609799970182,0.34283484,31327.0,31317.0,0.13956]
[1609799970383,0.34283484,31327.0,31326.0,5.0189]
[1609799970585,0.13632608,31328.0,31326.0,5.0189]
[1609799971985,0.13632608,31328.0,31327.0,0.13632608]
[1609799974987,0.13632608,31328.0,31327.0,4.26952608]
[1609799979390,0.2933,31334.0,31327.0,0.13632608]
[1609799979591,0.00403377,31347.0,31327.0,0.13632608]
[1609799979989,0.13632608,31337.0,31324.0,0.15104]
[1609799980589,0.13632608,31337.0,31317.0,0.13956]
[1609799980791,0.13632608,31337.0,31302.0,2.05255685]
[1609799981991,0.13632608,31337.0,31336.0,0.13632608]
[1609799995317,0.13632608,31337.0,31327.0,0.11618]
[1609799995716,0.13632608,31337.0,31306.0,2.0429231]
[1609799996116,0.14174,31343.0,31326.0,0.13632608]
[1609799996315,0.2972,31336.0,31326.0,0.13632608]
[1609799996715,0.2972,31336.0,31322.0,0.09831]
[1609799996916,0.47887344,31345.0,31322.0,0.09831]
[1609799997918,0.2846,31347.0,31322.0,0.09831]
[1609799998118,0.13632608,31323.0,31322.0,0.09831]
[1609799998315,0.13632608,31323.0,31315.0,0.14338]
[1609800000015,0.13632608,31316.0,31315.0,0.27970608]
[1609800000215,0.13632608,31316.0,31315.0,0.14338]
[1609800001817,0.13632608,31316.0,31296.0,0.12186]
[1609800002018,0.13632608,31310.0,31304.0,0.13632608]
[1609800002418,0.5781,31329.0,31304.0,0.28292608]
[1609800004020,0.13632608,31313.0,31312.0,0.13632608]
[1609800005020,0.13632608,31313.0,31304.0,0.1466]
[1609800006021,0.13632608,31313.0,31311.0,0.13632608]
[1609800006322,0.13632608,31313.0,31311.0,0.28336608]
[1609800013430,0.2849,31329.0,31311.0,0.28336608]
[1609800014233,0.2849,31329.0,31321.0,0.13632608]
[1609800014431,0.2849,31329.0,31321.0,0.25365608]
[1609800014631,0.2802,31340.0,31321.0,0.25365608]
[1609800015732,0.2802,31340.0,31321.0,0.11733]
[1609800016233,0.2802,31340.0,31337.0,0.13632608]
[1609800016435,0.00403338,31346.0,31337.0,0.29568608]
[1609800016634,0.30894474,31356.0,31337.0,0.29568608]
[1609800018036,0.2951,31356.0,31337.0,0.29568608]
[1609800018236,0.13632608,31338.0,31337.0,0.29568608]
[1609800023045,0.00406731,31351.0,31337.0,0.29568608]
[1609800023446,0.58123801,31353.0,31337.0,0.29568608]
[1609800023447,0.01394461,31353.0,31337.0,0.29568608]
[1609800024348,0.01394461,31353.0,31342.0,0.13632608]
[1609800024751,0.30901451,31356.0,31342.0,0.13632608]
[1609800026349,0.13632608,31348.0,31347.0,0.13632608]
[1609800027748,0.30901451,31356.0,31347.0,0.13632608]
[1609800027949,0.30901451,31356.0,31347.0,0.25941608]
[1609800028351,0.30901451,31356.0,31355.0,0.13632608]
[1609800028950,0.2951,31356.0,31355.0,0.13632608]
[1609800030450,0.43142608,31356.0,31355.0,0.13632608]
[1609800033652,0.43142608,31356.0,31354.0,0.11059]
[1609800037259,0.43142608,31356.0,31350.0,0.13632608]
[1609800037460,0.43142608,31356.0,31347.0,0.12309]
[1609800037761,0.43142608,31356.0,31337.0,0.15936]
[1609800037961,0.43142608,31356.0,31329.0,2.04431683]